bitfinex/quotes_SOLUSD_20230701
["timestamp","ask_amount","ask_price","bid_price","bid_amount"]
[1688178887867,22.956,18.426,18.419,22.965]
[1688178889168,22.956,18.426,18.414,59.138]
[1688178889572,22.956,18.426,18.415,55.0]
[1688178890973,22.956,18.426,18.417,22.967]
[1688178891350,22.956,18.426,18.415,77.969]
[1688178905877,22.956,18.426,18.415,22.969]
[1688178907581,22.956,18.426,18.416,55.0]
[1688178907763,22.956,18.426,18.416,77.969]
[1688178909385,22.956,18.426,18.413,96.5479]
[1688178909563,55.0,18.425,18.413,96.5479]
[1688178909876,22.962,18.422,18.413,96.5479]
[1688178910876,22.962,18.422,18.406,10.83719922]
[1688178911181,55.0,18.421,18.408,30.0]
[1688178911475,82.096,18.418,18.403,10.83719922]
[1688178911677,82.096,18.418,18.403,22.985]
[1688178911880,55.0,18.417,18.403,22.985]
[1688178912064,22.973,18.413,18.404,30.0]
[1688178912262,22.973,18.413,18.404,22.982]
[1688178914982,55.0,18.417,18.404,22.982]
[1688178915284,59.138,18.415,18.404,22.982]
[1688178915482,22.973,18.413,18.404,22.982]
[1688178915888,20.0,18.412,18.396,27.66337621]
[1688178916182,20.0,18.412,18.39,175.49]
[1688178916183,22.98,18.408,18.397,30.0]
[1688178916569,22.98,18.408,18.397,52.992]
[1688178916878,22.98,18.408,18.397,22.992]
[1688178917287,82.139,18.408,18.392,90.2084]
[1688178917465,190.132,18.403,18.393,30.0]
[1688178917872,190.132,18.403,18.393,52.997]
[1688178918071,190.132,18.403,18.393,22.997]
[1688178918389,82.16,18.403,18.393,22.997]
[1688178918563,82.16,18.403,18.392,90.2084]
[1688178918763,82.16,18.403,18.392,113.2064]
[1688178918968,82.16,18.403,18.392,90.2084]
[1688178919479,82.16,18.403,18.392,113.2074]
[1688178919674,22.985,18.403,18.392,22.999]
[1688178920188,55.0,18.407,18.392,22.999]
[1688178920189,59.166,18.407,18.392,22.999]
[1688178920391,22.985,18.404,18.392,22.999]
[1688178920590,22.985,18.404,18.393,55.0]
[1688178920787,22.985,18.404,18.396,22.993]
[1688178920969,22.985,18.404,18.394,22.995]
[1688178924794,22.985,18.404,18.397,22.992]
[1688178924975,22.983,18.405,18.397,22.992]
[1688178925166,22.983,18.405,18.393,59.204]
[1688178925370,22.983,18.405,18.396,22.993]
[1688178925570,22.983,18.405,18.394,22.995]
[1688178926574,22.983,18.405,18.39,150.1975]
[1688178927071,22.983,18.405,18.394,22.996]
[1688178928185,22.983,18.405,18.398,22.991]
[1688178928985,22.983,18.405,18.392,59.208]
[1688178929292,22.983,18.405,18.397,22.992]
[1688178930192,22.983,18.405,18.396,22.993]
[1688178931075,22.983,18.405,18.391,55.0]
[1688178931287,22.983,18.405,18.394,22.995]
[1688178932892,22.981,18.407,18.394,22.995]
[1688178933096,22.981,18.407,18.398,22.99]
[1688178933273,22.981,18.407,18.401,22.987]
[1688178935197,22.977,18.41,18.401,22.987]
[1688178935377,22.971,18.415,18.402,55.0]
[1688178935575,22.97,18.415,18.405,22.982]
[1688178936090,22.97,18.415,18.406,55.0]
[1688178936293,22.97,18.415,18.408,22.979]
[1688178936591,22.97,18.416,18.408,22.979]
[1688178936789,22.97,18.416,18.406,77.981]
[1688178936993,22.97,18.416,18.404,98.7275]
[1688178937292,22.97,18.416,18.405,55.0]
[1688178937491,22.97,18.416,18.405,77.982]
[1688178938491,22.968,18.417,18.405,77.982]
[1688178941291,33.35606708,18.417,18.405,55.0]
[1688178942092,33.35606708,18.417,18.405,22.982]
[1688178945495,33.35606708,18.417,18.406,55.0]
[1688178945496,22.968,18.417,18.406,55.0]
[1688178945687,22.968,18.417,18.408,22.978]
[1688178946278,22.968,18.417,18.404,98.7275]
[1688178946485,55.0,18.416,18.404,98.7275]
[1688178946685,82.117,18.413,18.404,98.7275]
[1688178946885,82.117,18.413,18.4,22.989]
[1688178947796,82.117,18.413,18.396,22.993]
[1688178947797,10.38806708,18.412,18.396,22.993]
[1688178948099,82.141,18.408,18.397,30.0]
[1688178948293,55.0,18.407,18.397,30.0]
[1688178948493,190.12,18.404,18.397,30.0]
[1688178948687,55.0,18.403,18.392,98.3635]
[1688178948887,55.0,18.403,18.391,22.999]
[1688178948888,22.989,18.4,18.391,22.999]
[1688178949696,22.985,18.404,18.392,55.0]
[1688178949897,22.985,18.404,18.396,22.993]
[1688178952710,22.985,18.404,18.392,22.998]
[1688178952913,22.985,18.404,18.385,135.28306282]
[1688178952914,22.985,18.404,18.385,27.20806282]
[1688178953211,22.985,18.404,18.388,50.0]
[1688178953512,22.985,18.404,18.39,23.001]
[1688178954097,22.985,18.404,18.391,55.0]
[1688178954412,22.985,18.404,18.394,22.995]
[1688178957714,22.985,18.404,18.388,50.0]
[1688178957913,55.0,18.403,18.389,55.0]
[1688178958115,22.99,18.399,18.39,20.0]
[1688178958415,22.99,18.399,18.392,22.998]
[1688178959318,114.178,18.403,18.392,22.998]
[1688178959617,22.989,18.401,18.392,22.998]
[1688178959919,82.145,18.406,18.392,22.998]
[1688178960119,82.145,18.406,18.396,22.993]
[1688178963715,82.145,18.406,18.391,59.211]
[1688178963930,82.145,18.406,18.396,22.993]
[1688178967929,22.982,18.406,18.396,22.993]
[1688178968127,59.151,18.411,18.396,22.993]
[1688178968428,22.979,18.408,18.396,22.993]
[1688178968610,20.0,18.41,18.396,22.993]
[1688178968906,22.978,18.409,18.4,22.988]
[1688178970031,82.126,18.409,18.4,22.988]
[1688178970528,141.281,18.409,18.398,22.991]
[1688178972226,151.66729469,18.409,18.396,22.992]
[1688178972423,22.984,18.405,18.395,22.994]
[1688178972809,22.981,18.407,18.395,22.994]
[1688178973014,59.148,18.409,18.395,22.994]
[1688178973735,59.148,18.409,18.396,55.0]
[1688178974031,22.979,18.408,18.399,22.989]
[1688178978840,22.975,18.411,18.4,55.0]
[1688178979133,167.022,18.417,18.403,22.984]
[1688178979338,22.973,18.413,18.403,22.984]
[1688178979629,10.38629469,18.417,18.403,22.984]
[1688178979837,34.16237354,18.424,18.407,22.979]
[1688178980017,28.38975733,18.427,18.407,22.979]
[1688178980018,22.968,18.417,18.407,22.979]
[1688178980935,22.968,18.417,18.403,168.15319922]
[1688178981231,22.968,18.417,18.403,98.142]
[1688178981232,55.0,18.416,18.403,98.142]
[1688178981440,82.119,18.413,18.4,22.987]
[1688178981635,82.119,18.413,18.399,22.99]
[1688178981833,85.38629469,18.412,18.399,22.99]
[1688178982038,22.979,18.409,18.399,22.99]
[1688178982934,59.154,18.41,18.399,82.177]
[1688178982935,22.977,18.41,18.399,82.177]
[1688178983118,22.977,18.41,18.4,55.0]
[1688178983320,22.977,18.41,18.403,22.985]
[1688178984435,22.975,18.412,18.403,22.985]
[1688178987437,22.972,18.414,18.403,22.985]
[1688178987645,22.972,18.414,18.404,55.0]
[1688178987831,34.96,18.418,18.404,55.0]
[1688178987832,57.927,18.418,18.407,22.98]
[1688178988036,57.927,18.418,18.408,55.0]
[1688178988229,34.96,18.418,18.411,22.975]
[1688178988837,57.927,18.418,18.411,22.975]
[1688178989446,68.31329469,18.418,18.405,22.982]
[1688178989634,65.38629469,18.417,18.405,22.982]
[1688178989834,22.972,18.414,18.405,22.982]
[1688178992444,57.927,18.418,18.405,22.982]
[1688178992650,22.967,18.418,18.406,55.0]
[1688178992836,22.967,18.418,18.409,22.977]
[1688178994550,77.965,18.42,18.41,55.0]
[1688178994752,20.0,18.419,18.412,22.973]
[1688178995253,42.965,18.419,18.412,22.973]
[1688178996340,42.965,18.419,18.41,22.976]
[1688179002656,42.965,18.419,18.409,22.977]
[1688179003057,53.35129469,18.419,18.402,59.177]
[1688179003461,10.38629469,18.418,18.402,59.177]
[1688179003650,22.972,18.414,18.405,22.982]
[1688179004557,22.972,18.414,18.406,55.0]
[1688179004757,22.972,18.414,18.406,77.98]
[1688179005865,10.38629469,18.418,18.406,77.98]
[1688179006745,22.97,18.416,18.406,77.98]
[1688179009667,22.97,18.416,18.406,55.0]
[1688179009867,22.97,18.416,18.405,55.0]
[1688179010067,22.97,18.416,18.405,77.982]
[1688179010865,22.97,18.416,18.405,55.0]
[1688179011869,22.97,18.416,18.405,77.982]
[1688179015268,22.97,18.416,18.405,22.982]
[1688179015471,22.97,18.416,18.402,22.986]
[1688179015773,33.35629469,18.416,18.402,22.986]
[1688179016774,33.35629469,18.416,18.403,55.0]
[1688179018077,33.35629469,18.416,18.403,77.985]
[1688179018973,22.97,18.416,18.403,77.985]
[1688179020078,20.0,18.419,18.403,77.985]
[1688179020279,20.0,18.42,18.403,77.985]
[1688179020886,20.0,18.425,18.403,77.985]
[1688179021195,59.102,18.423,18.403,77.985]
[1688179021492,22.963,18.421,18.403,132.195]
[1688179021691,22.959,18.425,18.41,35.16]
[1688179021997,22.959,18.425,18.414,82.109]
[1688179022179,22.959,18.425,18.417,22.967]
[1688179022573,22.959,18.425,18.418,55.0]
[1688179022987,22.959,18.425,18.417,55.0]
[1688179023583,22.959,18.425,18.412,92.7557]
[1688179023790,22.959,18.425,18.413,55.0]
[1688179024877,22.959,18.425,18.414,22.971]
[1688179025177,22.959,18.425,18.415,55.0]
[1688179025590,33.34529469,18.425,18.414,22.971]
[1688179026193,10.38629469,18.424,18.4,203.17443369]
[1688179026396,82.091,18.419,18.405,22.981]
[1688179026578,107.877,18.42,18.406,30.0]
[1688179026579,82.109,18.415,18.406,30.0]
[1688179026774,190.042,18.412,18.392,59.208]
[1688179026977,22.982,18.406,18.391,91.218]
[1688179027177,22.982,18.406,18.39,34.99]
[1688179027899,22.982,18.406,18.392,22.999]
[1688179029081,22.982,18.406,18.391,91.218]
[1688179029482,22.982,18.406,18.385,54.21]
[1688179029695,22.982,18.406,18.388,74.21]
[1688179030307,22.988,18.401,18.391,23.0]
[1688179030508,22.987,18.402,18.391,23.0]
[1688179031396,22.987,18.402,18.395,22.995]
[1688179032298,22.987,18.402,18.393,22.996]
[1688179032610,22.987,18.402,18.394,55.0]
[1688179032810,22.987,18.402,18.394,77.996]
[1688179033408,22.987,18.402,18.394,55.0]
[1688179034009,22.987,18.402,18.394,77.996]
[1688179034391,22.987,18.402,18.394,22.996]
[1688179034609,22.987,18.402,18.389,59.218]
[1688179034810,22.987,18.402,18.39,20.0]
[1688179035614,22.987,18.402,18.393,22.997]
[1688179035798,167.12,18.406,18.394,55.0]
[1688179035799,22.985,18.404,18.394,55.0]
[1688179036916,22.985,18.404,18.396,22.993]
[1688179040814,22.985,18.404,18.394,55.0]
[1688179041626,22.985,18.404,18.394,77.996]
[1688179042112,22.985,18.404,18.394,55.0]
[1688179043605,22.985,18.404,18.394,77.995]
[1688179044427,59.148,18.412,18.394,77.995]
[1688179044605,20.0,18.411,18.395,0.87588711]
[1688179044811,22.979,18.408,18.4,22.989]
[1688179046524,22.979,18.408,18.399,22.99]
[1688179049223,22.977,18.409,18.399,22.99]
[1688179049427,22.977,18.409,18.4,55.0]
[1688179049733,22.977,18.409,18.402,22.985]
[1688179052030,22.977,18.409,18.4,77.988]
[1688179053426,22.977,18.409,18.395,59.2]
[1688179053627,22.977,18.409,18.398,22.99]
[1688179054937,22.977,18.409,18.399,55.0]
[1688179055131,22.977,18.409,18.4,22.988]
[1688179055432,22.977,18.409,18.401,77.987]
[1688179057733,22.977,18.409,18.401,55.0]
[1688179057922,22.977,18.409,18.4,55.0]
[1688179061138,22.977,18.409,18.399,55.0]
[1688179061437,22.977,18.409,18.398,22.991]
[1688179062134,22.977,18.409,18.399,55.0]
[1688179065547,22.977,18.409,18.396,22.992]
[1688179065723,22.977,18.409,18.397,55.0]
[1688179067343,22.977,18.409,18.397,77.992]
[1688179071738,22.977,18.409,18.397,22.992]
[1688179078040,22.976,18.411,18.398,75.0]
[1688179078366,22.976,18.411,18.401,22.986]
[1688179078548,22.976,18.411,18.404,22.984]
[1688179079349,22.976,18.411,18.402,55.0]
[1688179079550,22.976,18.411,18.402,22.985]
[1688179082256,22.977,18.415,18.402,22.985]
[1688179082449,22.972,18.413,18.403,55.0]
[1688179082743,22.972,18.413,18.406,22.981]
[1688179083553,22.972,18.413,18.401,59.18]
[1688179083748,22.972,18.413,18.401,22.986]
[1688179083938,22.972,18.413,18.395,108.013]
[1688179083939,75.0,18.412,18.395,108.013]
[1688179084144,22.98,18.407,18.399,22.99]
[1688179085452,22.979,18.408,18.4,55.0]
[1688179085651,22.979,18.408,18.402,22.986]
[1688179085948,22.979,18.408,18.401,22.987]
[1688179086845,22.979,18.408,18.399,22.989]
[1688179087046,22.979,18.408,18.4,55.0]
[1688179089440,22.979,18.408,18.397,22.991]
[1688179089962,22.979,18.408,18.398,55.0]
[1688179093657,22.977,18.409,18.398,77.991]
[1688179093845,22.976,18.41,18.399,20.0]
[1688179094162,22.976,18.41,18.403,22.984]
[1688179094361,22.976,18.41,18.404,55.0]
[1688179095966,22.976,18.41,18.403,22.984]
[1688179096171,22.976,18.41,18.398,59.188]
[1688179096172,20.0,18.409,18.398,22.991]
[1688179096461,22.982,18.406,18.398,22.991]
[1688179102458,22.982,18.406,18.397,22.992]
[1688179102657,22.982,18.406,18.398,55.0]
[1688179106475,22.982,18.406,18.397,22.992]
[1688179106657,82.147,18.406,18.394,118.3467]
[1688179106971,82.147,18.406,18.395,55.0]
[1688179107969,82.147,18.406,18.395,77.994]
[1688179108149,22.982,18.406,18.395,77.994]
[1688179108354,22.978,18.409,18.396,2.21429744]
[1688179108555,22.978,18.409,18.399,22.989]
[1688179108856,22.978,18.409,18.402,22.985]
[1688179109071,22.978,18.409,18.403,55.0]
[1688179109266,22.978,18.409,18.403,77.985]
[1688179109771,22.978,18.409,18.403,55.0]
[1688179110360,22.977,18.415,18.404,22.983]
[1688179110567,22.977,18.415,18.405,55.0]
[1688179110568,22.974,18.412,18.405,55.0]
[1688179110761,22.974,18.412,18.406,22.981]
[1688179110962,22.971,18.414,18.407,55.0]
[1688179111171,22.971,18.414,18.407,77.979]
[1688179113976,22.97,18.415,18.407,77.979]
[1688179115671,22.968,18.417,18.407,77.979]
[1688179116181,22.966,18.418,18.407,77.979]
[1688179116476,28.38575255,18.428,18.408,22.30773026]
[1688179116788,22.959,18.425,18.414,82.11]
[1688179116972,22.959,18.425,18.415,55.0]
[1688179117161,22.959,18.425,18.416,22.968]
[1688179118575,22.959,18.425,18.415,77.969]
[1688179120180,22.959,18.425,18.415,22.969]
[1688179120380,55.0,18.424,18.414,22.971]
[1688179120692,22.969,18.416,18.408,22.977]
[1688179121068,22.969,18.416,18.406,22.98]
[1688179121265,22.969,18.416,18.403,3.85578898]
[1688179122459,22.969,18.416,18.403,58.85578898]
[1688179122665,22.969,18.416,18.403,81.83978898]
[1688179127180,22.969,18.416,18.403,26.83978898]
[1688179129594,55.0,18.415,18.403,26.83978898]
[1688179129793,22.974,18.412,18.403,22.984]
[1688179131093,22.972,18.414,18.404,1.45216785]
[1688179131286,22.972,18.414,18.407,22.98]
[1688179135894,22.972,18.414,18.405,22.981]
[1688179142487,75.0,18.413,18.396,97.4629]
[1688179142688,22.979,18.408,18.4,22.988]
[1688179143800,22.979,18.408,18.399,22.99]
[1688179147600,22.979,18.408,18.398,22.991]
[1688179147781,22.979,18.408,18.399,7.65724909]
[1688179148292,22.979,18.408,18.397,7.65724909]
[1688179148499,55.0,18.407,18.397,7.65724909]
[1688179148681,190.12,18.404,18.397,7.65724909]
[1688179148991,82.155,18.404,18.395,1.75386492]
[1688179149379,82.155,18.404,18.394,22.996]
[1688179149598,82.155,18.404,18.395,22.994]
[1688179149797,22.984,18.404,18.395,22.994]
[1688179151700,35.19,18.41,18.396,3.63979545]
[1688179151899,20.0,18.409,18.396,58.63979545]
[1688179152205,22.975,18.412,18.402,4.60817084]
[1688179152393,20.0,18.411,18.404,22.983]
[1688179152594,42.975,18.411,18.404,22.983]
[1688179152987,22.975,18.411,18.404,22.983]
[1688179153189,28.39367776,18.418,18.405,4.60817084]
[1688179153386,107.877,18.42,18.402,167.152]
[1688179153387,22.971,18.414,18.407,27.58717084]
[1688179153790,22.971,18.414,18.407,22.979]
[1688179155792,59.124,18.418,18.407,22.979]
[1688179156008,22.97,18.416,18.408,5.47702946]
[1688179156206,118.22331161,18.424,18.41,22.975]
[1688179156405,20.0,18.423,18.411,5.80755756]
[1688179156596,22.963,18.421,18.414,22.971]
[1688179157012,20.0,18.42,18.414,22.971]
[1688179157513,42.965,18.42,18.413,22.972]
[1688179158009,42.965,18.42,18.413,1.38131943]
[1688179158207,42.965,18.42,18.412,22.974]
[1688179161303,42.965,18.42,18.41,25.32280021]
[1688179161506,42.965,18.42,18.411,55.0]
[1688179161705,42.965,18.42,18.412,2.34780021]
[1688179163708,42.965,18.42,18.407,7.65724909]
[1688179163908,42.965,18.42,18.407,22.98]
[1688179164317,42.965,18.42,18.408,7.65724909]
[1688179164499,42.965,18.42,18.409,22.977]
[1688179164704,42.965,18.42,18.411,7.65724909]
[1688179167814,42.965,18.42,18.411,30.63124909]
[1688179168115,42.965,18.42,18.405,200.372]
[1688179168116,20.0,18.42,18.414,22.971]
[1688179168319,59.105,18.425,18.414,22.971]
[1688179168507,20.0,18.419,18.414,22.971]
[1688179169115,59.105,18.425,18.414,22.971]
[1688179169116,75.0,18.424,18.415,1.21298034]
[1688179169510,22.964,18.42,18.415,1.21298034]
[1688179169711,22.964,18.42,18.414,56.21298034]
[1688179170027,20.0,18.419,18.414,1.21298034]
[1688179170325,22.967,18.418,18.406,7.65724909]
[1688179170908,22.967,18.418,18.406,30.63824909]
[1688179171608,22.967,18.418,18.407,55.0]
[1688179171819,22.967,18.418,18.408,7.65724909]
[1688179172102,22.967,18.418,18.409,55.0]
[1688179172307,22.967,18.418,18.41,7.65724909]
[1688179176328,22.967,18.418,18.41,30.63324909]
[1688179176527,22.967,18.418,18.41,22.976]
[1688179177028,22.967,18.418,18.409,77.977]
[1688179177228,22.967,18.418,18.41,7.65724909]
[1688179180633,22.967,18.418,18.411,55.0]
[1688179181018,22.967,18.418,18.41,55.0]
[1688179181316,22.967,18.418,18.411,1.10166635]
[1688179191538,22.967,18.418,18.406,22.981]
[1688179191838,22.967,18.418,18.407,62.33020865]
[1688179196542,22.967,18.418,18.407,85.30920865]
[1688179203644,20.0,18.419,18.407,85.30920865]
[1688179204149,20.0,18.422,18.407,85.30920865]
[1688179205044,22.965,18.419,18.407,85.30920865]
[1688179215847,22.965,18.419,18.407,7.33020865]
[1688179216652,22.965,18.419,18.407,30.31020865]
[1688179217059,22.965,18.419,18.408,55.0]
[1688179217246,22.965,18.419,18.409,7.33020865]
[1688179218052,22.965,18.419,18.406,22.981]
[1688179218053,55.0,18.418,18.407,7.65724909]
[1688179218254,190.009,18.415,18.403,7.65724909]
[1688179218464,35.15,18.41,18.403,7.65724909]
[1688179218645,82.138,18.408,18.396,22.993]
[1688179218956,82.138,18.408,18.397,30.0]
[1688179219139,82.138,18.408,18.397,52.992]
[1688179219445,82.138,18.408,18.398,7.65724909]
[1688179219645,82.138,18.408,18.397,22.992]
[1688179221149,82.138,18.408,18.398,55.0]
[1688179221359,82.138,18.408,18.399,7.65724909]
[1688179222237,22.979,18.408,18.399,30.64724909]
[1688179222434,22.979,18.408,18.401,7.65724909]
[1688179222634,22.979,18.408,18.4,55.0]
[1688179223046,22.979,18.408,18.395,59.2]
[1688179223247,22.979,18.408,18.398,22.991]
[1688179223442,22.979,18.408,18.4,2.67008039]
[1688179224055,22.979,18.408,18.398,22.991]
[1688179224251,22.979,18.408,18.396,25.66208039]
[1688179224549,22.979,18.408,18.398,5.1456776]
[1688179224766,22.979,18.408,18.398,28.1366776]
[1688179224944,22.979,18.408,18.399,55.0]
[1688179225257,22.979,18.408,18.4,5.1456776]
[1688179225454,22.979,18.408,18.401,77.986]
[1688179225758,22.979,18.408,18.402,5.1456776]
[1688179227544,22.979,18.408,18.403,55.0]
[1688179228257,22.979,18.408,18.403,1.46778422]
[1688179228441,22.979,18.408,18.402,55.0]
[1688179228642,22.979,18.408,18.402,2.1056304]
[1688179228849,22.979,18.408,18.399,5.29346138]
[1688179229044,22.979,18.408,18.4,55.0]
[1688179229245,22.979,18.408,18.401,5.29346138]
[1688179233550,22.979,18.408,18.399,5.29346138]
[1688179237548,22.983,18.405,18.396,5.29346138]
[1688179237749,22.983,18.405,18.393,7.65724909]
[1688179238363,22.983,18.405,18.392,7.65724909]
[1688179238669,22.983,18.405,18.393,22.997]
[1688179238852,22.983,18.405,18.394,7.65724909]
[1688179239253,22.983,18.405,18.394,30.65224909]
[1688179240369,22.983,18.405,18.394,41.48944831]
[1688179240570,22.983,18.405,18.395,55.0]
[1688179240754,22.983,18.405,18.397,22.991]
[1688179241563,22.983,18.405,18.398,7.65724909]
[1688179242868,22.983,18.405,18.394,30.65324909]
[1688179246459,22.983,18.405,18.395,55.0]
[1688179246659,22.983,18.405,18.398,22.991]
[1688179250671,35.14,18.41,18.398,22.991]
[1688179250880,20.0,18.409,18.399,62.65724909]
[1688179251061,20.0,18.409,18.402,22.985]
[1688179251377,42.978,18.409,18.402,22.985]
[1688179251764,20.0,18.409,18.402,22.985]
[1688179251965,59.131,18.417,18.403,62.65724909]
[1688179252165,22.972,18.414,18.407,22.98]
[1688179252478,22.969,18.416,18.408,7.65724909]
[1688179252662,22.969,18.416,18.408,30.63524909]
[1688179253075,59.131,18.419,18.408,30.63524909]
[1688179253270,22.966,18.419,18.409,55.0]
[1688179253586,22.966,18.419,18.41,30.63224909]
[1688179254161,33.19114571,18.419,18.41,30.63224909]
[1688179255482,33.19114571,18.419,18.41,7.65724909]
[1688179255981,22.966,18.419,18.411,55.0]
[1688179256182,22.966,18.419,18.412,30.62924909]
[1688179256356,22.964,18.42,18.412,30.62924909]
[1688179256563,20.0,18.419,18.412,30.62924909]
[1688179256762,42.966,18.419,18.412,22.972]
[1688179257486,42.966,18.419,18.411,22.975]
[1688179257667,42.966,18.419,18.412,55.0]
[1688179257975,22.966,18.419,18.412,55.0]
[1688179258180,10.22514571,18.424,18.412,77.973]
[1688179258368,22.962,18.422,18.413,6.74313771]
[1688179258563,22.962,18.422,18.415,22.969]
[1688179258766,22.962,18.422,18.416,55.0]
[1688179259279,22.962,18.422,18.414,22.971]
[1688179259479,22.962,18.422,18.415,55.0]
[1688179259678,22.962,18.422,18.416,6.74313771]
[1688179260780,22.962,18.422,18.415,77.969]
[1688179260982,22.959,18.424,18.416,7.00306957]
[1688179261383,22.959,18.424,18.418,22.966]
[1688179261879,22.959,18.424,18.416,7.00306957]
[1688179262178,22.959,18.424,18.416,29.97106957]
[1688179263574,22.959,18.424,18.416,7.00306957]
[1688179263880,22.959,18.424,18.414,7.00306957]
[1688179265084,22.959,18.424,18.414,29.97406957]
[1688179265380,105.61531209,18.428,18.414,7.00306957]
[1688179265570,22.959,18.424,18.414,22.971]
[1688179265770,22.958,18.425,18.415,55.0]
[1688179265976,22.955,18.427,18.418,22.966]
[1688179266478,22.955,18.427,18.416,30.62524909]
[1688179266785,45.921,18.427,18.416,30.62524909]
[1688179267573,45.921,18.427,18.416,7.65724909]
[1688179267774,55.0,18.426,18.413,22.972]
[1688179267985,82.074,18.423,18.411,7.65724909]
[1688179268169,82.074,18.423,18.405,155.2791]
[1688179268170,55.0,18.422,18.406,7.65724909]
[1688179268372,22.967,18.418,18.406,7.65724909]
[1688179268669,22.967,18.418,18.403,7.65724909]
[1688179268868,22.973,18.413,18.404,22.983]
[1688179269079,22.973,18.413,18.4,7.65724909]
[1688179269080,22.973,18.413,18.403,22.985]
[1688179269677,22.973,18.413,18.403,7.65724909]
[1688179269886,22.973,18.413,18.403,30.64224909]
[1688179270080,22.985,18.415,18.395,7.65724909]
[1688179270081,82.131,18.41,18.395,7.65724909]
[1688179270275,82.131,18.41,18.397,22.992]
[1688179270477,22.982,18.406,18.398,7.65724909]
[1688179270876,22.982,18.406,18.395,7.65724909]
[1688179271089,22.982,18.406,18.397,7.65724909]
[1688179271974,59.151,18.411,18.398,55.0]
[1688179272184,22.979,18.408,18.401,22.986]
[1688179273978,22.979,18.408,18.399,7.65724909]
[1688179275383,22.979,18.408,18.399,30.64624909]
[1688179275689,22.977,18.409,18.402,22.985]
[1688179275890,22.977,18.409,18.401,7.65724909]
[1688179276487,22.977,18.409,18.399,7.65724909]
[1688179281986,22.977,18.409,18.396,7.65724909]
[1688179282209,22.977,18.409,18.394,41.48944831]
[1688179282493,22.977,18.409,18.395,55.0]
[1688179282696,22.977,18.409,18.396,7.65724909]
[1688179284987,22.977,18.409,18.396,30.65024909]
[1688179285299,22.477,18.409,18.396,30.65024909]